Cogmind - Beta 12 @@@ ROGUE MODE // 2023.03.19 @ 10:04:04 Player: TrialByFire Result: Destroyed by P-70 Sage with High-powered Shock Rifle Performance ------------- Evolutions (5) 2500 Regions Visited (15) 3000 Robots Destroyed (152) 760 Value Destroyed (9171) 9171 Prototype IDs (7) 140 Alien Tech Used (0) 0 Bonus (5781) 5781 TOTAL SCORE: 21352 Bonus ------- High Alert Combat Kills 1552 Follower Combat Kills 329 Entered Garrisons 600 Used RIF Installer 2500 Entered DSFs 500 Aligned with FarCom 300 Cogmind --------- Core Integrity 0/1000 Matter 273/300 Energy 40/100 System Corruption 13% Temperature Cool (0) Movement Core (800) Ox15 Location -5/Factory Parts ------- > --- POWER (1) -------- (None) > --- PROPULSION (6) --- (None) > --- UTILITY (8) ------ High-capacity Storage Unit Advanced Targeting Computer System Shield Relay Coupler [Grunt] (7) > --- WEAPON (2) ------- Cooled Pulse Rifle Cooled Pulse Rifle > --- INVENTORY (20) --- Improved Weapon Cycler Microactuators Authchip [Processor] Relay Coupler [Grunt] (33) Relay Coupler [Grunt] (20) Improved Component Analysis Suite Supersonic Drone Bay (1/1) Tesla Rifle Heavy Shock Bomb Launcher Improved Remote Datajack Power Maul Axe Power Sword Power Sword Power Sword Power Sword Falx Phasing Sabre Peak State ------------ > --- POWER ------------ Micro Antimatter Reactor > --- PROPULSION ------- Carbon-fiber Leg Carbon-fiber Leg Armored Huge Wheel Armored Huge Wheel > --- UTILITY ---------- High-capacity Storage Unit Advanced Targeting Computer Advanced Targeting Computer Advanced Melee Analysis Suite System Shield System Shield Relay Coupler [Grunt] Relay Coupler [Specialist] > --- WEAPON ----------- Power Maul Falx > --- INVENTORY -------- Micro Antimatter Reactor Combat Airjet Combat Airjet Combat Airjet Combat Airjet Large Storage Unit Improved Sensor Array Improved Signal Interpreter Improved Weapon Cycler Authchip [Processor] Authchip [Weapon] Improved Component Analysis Suite Supersonic Drone Bay Gauss Cannon Gauss Cannon Remote Datajack Power Sword Power Sword Power Sword Power Sword [Rating: 74] Favorites ----------- Power Light Angular Momentum Engine Engine Light Angular Momentum Engine Power Core Neutrino Core Reactor Micro Antimatter Reactor Propulsion Aluminum Leg Treads Improved Treads Leg Aluminum Leg Wheel Armored Huge Wheel Hover Unit Antigrav System Utility Advanced Targeting Computer Device Structural Scanner Storage High-capacity Storage Unit Processor Advanced Targeting Computer Hackware System Shield Protection Medium Reactive Plating Weapon Improved Assault Rifle Energy Gun Particle Gun Ballistic Gun Improved Assault Rifle Ballistic Cannon Gauss Cannon Launcher Proton Missile Launcher Special Weapon Remote Datajack Impact Weapon Power Maul Slashing Weapon Falx Build | -11 -10 -9 -9 -9 -8 -8 -8 -8 -7 -7 -6 -6 -5 -5 -5 ------- Run | Jun Mat Mat Min Exi Min Mat Gar Mat Fac Gar Fac DSF Fac Gar Fac Slots Evolved 10 | . . 2 . . . 2 . . 2 . 2 . 2 . . Power . | . . . . . . . . . . . . . . . . Propulsion 4 | . . 2 . . . . . . . . . . 2 . . Utility 6 | . . . . . . 2 . . 2 . 2 . . . . Weapon . | . . . . . . . . . . . . . . . . Parts Attached 227 | 6 5 3 . 1 2 22 37 22 33 29 3 2 8 29 25 Power 19 | 1 1 . . . . 1 4 1 . 4 . 1 2 2 2 Engine 8 | 1 1 . . . . . 1 1 . 2 . 1 . 1 . Core 8 | . . . . . . 1 3 . . 2 . . . 1 1 Reactor 3 | . . . . . . . . . . . . . 2 . 1 Propulsion 69 | 2 . 3 . . . 8 11 6 12 2 . . 3 15 7 Treads 11 | . . . . . . . . . 4 . . . . 6 1 Leg 53 | 2 . 3 . . . 8 11 6 7 . . . 2 8 6 Wheel 4 | . . . . . . . . . 1 2 . . 1 . . Hover 1 | . . . . . . . . . . . . . . 1 . Flight . | . . . . . . . . . . . . . . . . Utility 31 | 1 2 . . 1 . 7 1 2 5 1 2 1 2 2 4 Device 6 | . 1 . . . . 3 . . 1 . . 1 . . . Storage 4 | 1 . . . 1 . . 1 . 1 . . . . . . Processor 5 | . 1 . . . . 2 . 1 . . . . 1 . . Hackware 12 | . . . . . . . . 1 3 1 2 . 1 2 2 Protection 4 | . . . . . . 2 . . . . . . . . 2 Artifact . | . . . . . . . . . . . . . . . . Weapon 108 | 2 2 . . . 2 6 21 13 16 22 1 . 1 10 12 Energy Gun 10 | 2 . . . . . . 1 1 1 . . . . . 5 Energy Cannon . | . . . . . . . . . . . . . . . . Ballistic Gun 31 | . 2 . . . 1 4 11 6 4 . . . . 3 . Ballistic Cannon 9 | . . . . . . . . . 2 7 . . . . . Launcher 7 | . . . . . 1 . 1 1 1 3 . . . . . Special Weapon 15 | . . . . . . . . 2 4 3 1 . . 2 3 Impact Weapon 8 | . . . . . . 2 5 . . 1 . . . . . Slashing Weapon 28 | . . . . . . . 3 3 4 8 . . 1 5 4 Piercing Weapon . | . . . . . . . . . . . . . . . . Special Melee Weapon . | . . . . . . . . . . . . . . . . Unidentified Prototypes 3 | . . . . . . 1 . . . . . . . . 2 Parts Lost 56 | . . . . . . 7 10 1 3 7 . . 1 8 19 Power 8 | . . . . . . 1 2 . . 2 . . . . 3 Propulsion 32 | . . . . . . 3 4 1 2 4 . . . 7 11 Utility 8 | . . . . . . 1 1 . . . . . 1 . 5 Weapon 8 | . . . . . . 2 3 . 1 1 . . . 1 . Highest Loss Streak 12 | . . . . . . 4 4 1 2 7 . . 1 5 12 To Critical Strikes . | . . . . . . . . . . . . . . . . Average Slot Usage (%) 96 | . 94 100 100 100 100 96 99 100 98 98 86 86 83 92 96 Engine 4 | . 14 11 11 11 11 2 2 6 7 5 . 3 1 2 . Core 2 | . . . . . . 6 6 2 . 1 6 2 . 1 4 Treads 7 | . . . . . . . . . . 26 . . . 9 21 Leg 21 | . 28 44 44 44 44 35 35 36 28 . . . 7 10 11 Wheel 2 | . . . . . . . . . . 1 13 13 10 6 . Storage 8 | . 14 11 11 11 11 9 13 14 7 7 6 6 5 5 5 Processor 15 | . 4 11 11 11 11 15 18 18 15 15 13 13 15 17 14 Hackware 13 | . . . . . . . . 3 22 23 33 27 21 23 23 Protection 1 | . . . . . . 2 4 . . . . . . . 1 Ballistic Gun 6 | . 14 22 22 22 22 17 14 8 4 . . . . 1 . Special Weapon 1 | . . . . . . . . 2 5 1 6 6 . 2 2 Slashing Weapon 3 | . . . . . . . . 5 . 8 . . 4 6 7 Naked Turns . | . . . . . . . . . . . . . . . . Heaviest Build 69 | 10 17 16 16 31 31 51 54 38 59 64 60 62 63 64 69 Greatest Support 138 | 20 20 40 40 40 40 80 80 52 112 112 56 56 56 138 138 Greatest Overweight (x) 3 | 2 . . . . . 1 1 . 3 2 1 1 1 2 1 Average Overweight (x) . | . . . . . . . . . . . 1 1 . . . Largest Inventory Capacity 20 | 8 8 8 8 15 15 15 15 15 20 20 20 20 20 20 20 Average Capacity 17 | 7 8 8 8 13 15 15 15 15 18 20 20 20 20 20 20 Most Carried 20 | 8 8 8 8 9 9 15 15 15 20 20 15 20 20 20 20 Average Carried 16 | 5 7 7 8 8 9 12 14 14 16 19 14 18 19 19 19 Final Capacity 20 | 8 8 8 8 15 15 15 15 15 20 20 20 20 20 20 20 Final Carried 20 | 6 8 8 8 9 9 15 15 15 19 16 15 19 20 19 18 Class Distribution -------------------- 33% | Bothacker-Mutant 32% | Scavenger-Mutant 26% | Mutant 4% | Hacker-Mutant Dominant Class ---------------- Mutant | -10/Materials Mutant | -9/Materials Mutant | -9/Mines Mutant | -9/Exiles Mutant | -8/Mines Scavenger-Mutant | -8/Materials Scavenger-Mutant | -8/Garrison Scavenger-Mutant | -8/Materials Scavenger-Mutant | -7/Factory Mutant | -7/Garrison Bothacker-Mutant | -6/Factory Assassin | -6/DSF Hacker-Mutant | -5/Factory Bothacker-Mutant | -5/Garrison Bothacker-Mutant | -5/Factory Resources | -11 -10 -9 -9 -9 -8 -8 -8 -8 -7 -7 -6 -6 -5 -5 -5 ----------- Run | Jun Mat Mat Min Exi Min Mat Gar Mat Fac Gar Fac DSF Fac Gar Fac Matter Collected 4373 | 227 119 276 . . 46 602 896 356 458 528 . 238 80 376 171 Remotely . | . . . . . . . . . . . . . . . . Salvage Created 6508 | . 202 308 . . 23 933 1318 655 418 577 . . 385 770 919 Parts 344 | . 14 19 . . 6 57 73 39 20 33 . . 12 36 35 Haulers Intercepted 1 | . . . . . . . . 1 . . . . . . . Recyclers Shooed . | . . . . . . . . . . . . . . . . Parts Field Recycled . | . . . . . . . . . . . . . . . . Retrieved Matter . | . . . . . . . . . . . . . . . . Parts Self-Destructed . | . . . . . . . . . . . . . . . . Prevented . | . . . . . . . . . . . . . . . . Kills | -11 -10 -9 -9 -9 -8 -8 -8 -8 -7 -7 -6 -6 -5 -5 -5 ------- Run | Jun Mat Mat Min Exi Min Mat Gar Mat Fac Gar Fac DSF Fac Gar Fac Combat Hostiles Destroyed 140 | . 4 6 . . 3 18 30 14 9 21 . . 8 13 14 Melee 48 | . . . . . . . . 5 4 6 . . 7 12 14 Guns 64 | . 4 6 . . . 18 27 5 4 . . . . . . Cannons 12 | . . . . . . . . . 1 11 . . . . . AOE 14 | . . . . . 3 . 3 4 . 3 . . . 1 . Classes Destroyed 15 | . 2 1 . . 1 4 3 3 . 1 . . . . . Builder 1 | . . . . . . 1 . . . . . . . . . Hauler 1 | . . . . . . . . 1 . . . . . . . Recycler 1 | . . . . . . . . 1 . . . . . . . Operator 1 | . . . . . . 1 . . . . . . . . . Watcher 8 | . 1 1 . . . 2 . 1 1 1 . . . . 1 Swarmer 28 | . . . . . 3 3 4 2 . 11 . . 2 3 . Cutter 1 | . . . . . . . 1 . . . . . . . . Grunt 63 | . 4 3 . . . 12 10 9 4 6 . . 4 4 7 Brawler 4 | . . . . . . . 3 . . . . . . . 1 Duelist 7 | . . . . . . 1 1 . 2 . . . . . 3 Protector 2 | . . . . . . . . 1 . 1 . . . . . Sentry 22 | . . 3 . . . 1 8 2 1 1 . . . 6 . Demolisher 1 | . . . . . . . . . . 1 . . . . . Hunter 3 | . . . . . . 1 . . . 1 . . . . 1 Programmer 9 | . . . . . . . 3 . 2 . . . 2 . 2 Best Kill Streak 8 | . 2 4 . . 3 7 8 5 4 6 . . 4 2 2 Combat Bots Only 8 | . 2 4 . . 3 5 8 4 4 6 . . 4 2 2 Max Kills in Single Turn 3 | . 1 1 . . 3 2 2 3 1 2 . . 1 1 1 Gunslinging 1 | . . . . . . . 1 . . . . . . . . Exploded 3 | . . . . . 3 . 2 3 . 2 . . . 1 . Melee 1 | . . . . . . . . 1 1 1 . . 1 1 1 Uniques/NPCs Destroyed . | . . . . . . . . . . . . . . . . Combat | -11 -10 -9 -9 -9 -8 -8 -8 -8 -7 -7 -6 -6 -5 -5 -5 -------- Run | Jun Mat Mat Min Exi Min Mat Gar Mat Fac Gar Fac DSF Fac Gar Fac Damage Taken 11659 | . 48 269 . . 7 1207 2401 401 1003 1895 . 135 696 1358 2239 Core 2229 | . 10 53 . . . 144 278 78 402 249 . . 216 310 489 Absorbed by Shields 15 | . . . . . . . . . . . . 5 . 10 . Regen/Repaired (Parts) 377 | . . . . . . . . . . . . . 226 . 151 Core Remaining (%) 66 | 100 96 . . . 86 . . 9 . 7 . 100 . . . Volleys Fired 313 | . 12 16 . . 2 67 102 29 24 42 1 6 1 8 3 Largest 2 | . 2 2 . . 2 2 2 2 2 2 1 1 1 1 1 Hottest 113 | . 80 46 . . 46 46 88 88 113 96 5 5 5 33 7 Shots Fired 567 | . 24 32 . . 3 134 199 50 40 66 1 6 1 8 3 Gun 465 | . 24 32 . . 2 134 197 42 33 . . . . 1 . Cannon 59 | . . . . . . . . . 3 56 . . . . . Launcher 18 | . . . . . 1 . 2 4 2 9 . . . . . Special 25 | . . . . . . . . 4 2 1 1 6 1 7 3 Kinetic 472 | . 12 32 . . 2 134 167 34 34 56 . . . 1 . Thermal 52 | . 12 . . . . . 30 8 2 . . . . . . Explosive 9 | . . . . . 1 . 2 4 2 . . . . . . Electromagnetic 9 | . . . . . . . . . . 9 . . . . . Robot Hit Streak 29 | . 6 8 . . 1 29 28 7 18 29 1 2 3 8 4 Robot Miss Streak 3 | . 1 2 . . 1 2 2 1 1 3 . 1 . 1 . Penetration Max 1 | . . . . . . . 1 . . . . . . . . Secondary Targets 10 | . . . . . . 1 8 . 1 . . . . . . Max Gunslinging Chain 1 | . . . . . . 1 1 . 1 . . . . . . Shots Hit Robots 619 | . 15 24 . . 1 117 157 46 46 71 1 4 25 44 68 Core Hits 272 | . 10 13 . . 3 49 56 36 26 29 . . 8 16 26 Critical Kills . | . . . . . . . . . . . . . . . . Critical Parts Destroyed 8 | . . . . . . . 3 . 2 3 . . . . . Critical Strikes 38 | . . . . . . . 3 1 4 11 . . 3 9 7 Destroy 5 | . . . . . . . 3 . 2 . . . . . . Blast 7 | . . . . . . . . . . 7 . . . . . Smash 3 | . . . . . . . . . . 3 . . . . . Sever 23 | . . . . . . . . 1 2 1 . . 3 9 7 Melee Attacks 350 | . . . . . . 2 41 24 12 68 . . 41 84 78 Impact 58 | . . . . . . 2 25 . . 17 . . 11 3 . Slashing 292 | . . . . . . . 16 24 12 51 . . 30 81 78 Piercing . | . . . . . . . . . . . . . . . . Sneak Attacks 27 | . . . . . . . . . . 2 . . . 16 9 Combat Hostiles 27 | . . . . . . . . . . 2 . . . 16 9 Follow-up Attacks 23 | . . . . . . . . 1 2 3 . . 7 5 5 Damage Inflicted 16967 | . 193 351 . . 191 1749 2778 1564 1292 2460 . . 1091 2344 2954 Guns 5877 | . 193 351 . . 16 1749 2557 499 512 . . . . . . Cannons 1279 | . . . . . . . . . 97 1182 . . . . . Explosions 1867 | . . . . . 175 . 221 759 334 378 . . . . . Melee 7944 | . . . . . . . . 306 349 900 . . 1091 2344 2954 Ramming . | . . . . . . . . . . . . . . . . Kinetic 6567 | . 105 351 . . 16 1749 2172 418 574 1182 . . . . . Thermal 719 | . 88 . . . . . 385 81 35 130 . . . . . Explosive 1446 | . . . . . 175 . 221 716 334 . . . . . . Electromagnetic 291 | . . . . . . . . 43 . 248 . . . . . Impact 651 | . . . . . . . . . . 288 . . 363 . . Slashing 7293 | . . . . . . . . 306 349 612 . . 728 2344 2954 Piercing . | . . . . . . . . . . . . . . . . Highest Corruption 13 | . . . . . . . 3 3 . . . . 1 1 13 Average Corruption 1 | . . . . . . . 2 3 . . . . 1 1 1 Corruption Purged . | . . . . . . . . . . . . . . . . Corruption Blocked . | . . . . . . . . . . . . . . . . Effects 70 | . . . . . . . 14 18 . . . . 4 22 12 Message Errors 11 | . . . . . . . 2 1 . . . . . 5 3 Matter Fused 25 | . . . . . . . 6 6 . . . . 1 9 3 Heat Flow Errors 4 | . . . . . . . 1 1 . . . . . 1 1 Energy Discharges 7 | . . . . . . . 1 1 . . . . . 4 1 Parts Rejected 1 | . . . . . . . . 1 . . . . . . . Data Loss (minor) 12 | . . . . . . . 2 6 . . . . 1 2 1 Data Loss (major) 6 | . . . . . . . . 1 . . . . 1 1 3 Misfires 1 | . . . . . . . 1 . . . . . . . . Alerts 3 | . . . . . . . 1 1 . . . . 1 . . Overload Shots . | . . . . . . . . . . . . . . . . Overflow Damage 343 | . . . . . . . . 2 . 214 . . 29 58 40 Projectiles 33 | . . . . . . . . . . 33 . . . . . Explosions 2 | . . . . . . . . 2 . . . . . . . Melee 308 | . . . . . . . . . . 181 . . 29 58 40 Knockbacks 16 | . . . . . . . . . 1 14 . . 1 . . Impact 2 | . . . . . . . . . . 1 . . 1 . . Kinetic 14 | . . . . . . . . . 1 13 . . . . . Secondary . | . . . . . . . . . . . . . . . . Self-Inflicted Damage 73 | . . . . . . . 68 . . 5 . . . . . Shots 2 | . . . . . . . 1 . . 1 . . . . . Rammed . | . . . . . . . . . . . . . . . . Targets Rammed . | . . . . . . . . . . . . . . . . Kicked . | . . . . . . . . . . . . . . . . Crushed . | . . . . . . . . . . . . . . . . Highest Temperature 264 | . 72 19 . . . 49 244 159 60 264 . . . 187 137 Average Temperature 70 | . 31 6 . . . 22 86 56 26 80 . . . 107 62 Received Heat Transfer 2826 | . 30 147 . . . 504 963 207 75 207 . 15 117 282 279 Siege Activations . | . . . . . . . . . . . . . . . . Robots Corrupted . | . . . . . . . . . . . . . . . . Combat Hostiles . | . . . . . . . . . . . . . . . . Parts Fried 4 | . . . . . . . . . . 1 . . 2 1 . Impact Corruptions 11 | . . . . . . . . . . 9 . . 2 . . Robots Melted . | . . . . . . . . . . . . . . . . Combat Hostiles . | . . . . . . . . . . . . . . . . Parts Melted 6 | . . . . . . . 4 . . 2 . . . . . Heat Transferred 1423 | . 200 . . . . . 814 185 74 150 . . . . . Parts Sabotaged 3 | . . . . . . . . . . . . . . 3 . Parts Stolen . | . . . . . . . . . . . . . . . . Parts Stripped . | . . . . . . . . . . . . . . . . Power Chain Reactions 3 | . . . . . . . . . . 3 . . . . . Missiles Intercepted . | . . . . . . . . . . . . . . . . Alert | -11 -10 -9 -9 -9 -8 -8 -8 -8 -7 -7 -6 -6 -5 -5 -5 ------- Run | Jun Mat Mat Min Exi Min Mat Gar Mat Fac Gar Fac DSF Fac Gar Fac Peak Influence 1804 | . 140 233 90 . 168 277 1804 926 426 907 476 335 274 1751 1000 Initial 919 | . . 18 90 . . 65 180 879 385 154 476 333 162 99 919 Average 558 | . 84 138 90 . 82 101 808 861 285 569 476 319 169 712 837 Maximum Alert Level 5 | . . 1 . . . 1 5 3 2 3 2 1 1 5 3 Low Security (%) 24 | 100 100 75 100 . 100 87 9 . 9 3 . . 67 13 . Level 1 21 | . . 24 . . . 12 7 . 89 17 . 100 32 23 . Level 2 17 | . . . . . . . 34 . 1 55 100 . . 21 3 Level 3 26 | . . . . . . . 22 100 . 23 . . . 16 96 Level 4 7 | . . . . . . . 21 . . . . . . 19 . Level 5 2 | . . . . . . . 5 . . . . . . 6 . High Security . | . . . . . . . . . . . . . . . . Max Security . | . . . . . . . . . . . . . . . . Squads Dispatched 21 | . 2 . . . . 6 . 2 5 . . 1 1 . 4 Investigation 1 | . . . . . . . . . 1 . . . . . . Extermination 5 | . . . . . . . . . 2 . . . 1 . 2 Reinforcement 8 | . 2 . . . . 3 . 1 1 . . 1 . . . Assault 4 | . . . . . . . . 1 1 . . . . . 2 Garrison 3 | . . . . . . 3 . . . . . . . . . Intercept . | . . . . . . . . . . . . . . . . Searches Triggered . | . . . . . . . . . . . . . . . . Construction Impeded . | . . . . . . . . . . . . . . . . Haulers Reinforced . | . . . . . . . . . . . . . . . . Active Scanning Responses . | . . . . . . . . . . . . . . . . Cargo Convoy Interrupts 1 | . . . . . . . . . . . . . . . 1 Alert ID Control Effect 4 | . . . . . . . . . . . . 2 2 . . Stealth | -11 -10 -9 -9 -9 -8 -8 -8 -8 -7 -7 -6 -6 -5 -5 -5 --------- Run | Jun Mat Mat Min Exi Min Mat Gar Mat Fac Gar Fac DSF Fac Gar Fac Distress Signals 9 | . . . . . . 4 . 3 . . . . . . 2 Communications Jammed . | . . . . . . . . . . . . . . . . Distress Signals . | . . . . . . . . . . . . . . . . Times Spotted 232 | . 8 7 . . 4 29 36 24 16 24 . 7 16 22 39 Peak Tracking Total 8 | . 3 5 . . 4 5 7 5 5 4 . 4 8 3 6 Tactical Retreats 31 | . . . . . . 3 4 2 . 3 . . 3 10 6 Traps | -11 -10 -9 -9 -9 -8 -8 -8 -8 -7 -7 -6 -6 -5 -5 -5 ------- Run | Jun Mat Mat Min Exi Min Mat Gar Mat Fac Gar Fac DSF Fac Gar Fac Traps Triggered 17 | . . . . . . . 1 . 3 1 . 2 . 10 . Indirectly 1 | . . . . . . . . . . 1 . . . . . Trap Hack Attempts . | . . . . . . . . . . . . . . . . Triggered . | . . . . . . . . . . . . . . . . Disarmed . | . . . . . . . . . . . . . . . . Reprogrammed . | . . . . . . . . . . . . . . . . Reused 7 | . . . . . . . . . . . . . . 7 . Traps Extracted . | . . . . . . . . . . . . . . . . Installed 16 | . . . . . . . . . . . . . . 16 . Triggered 8 | . . . . . . . . . . . . . . 7 1 Most Traps Carried 4 | . . . . . . . . . . . . . . 4 . Machines | -11 -10 -9 -9 -9 -8 -8 -8 -8 -7 -7 -6 -6 -5 -5 -5 ---------- Run | Jun Mat Mat Min Exi Min Mat Gar Mat Fac Gar Fac DSF Fac Gar Fac Machines Disabled 26 | . . . . . . . 11 2 1 5 . 1 . 6 . Max in Single Turn 2 | . . . . . . . 2 1 1 1 . . . 1 . Garrison Access 2 | . . . . . . . . . 1 . . . . . 1 Garrison Relay 13 | . . . . . . . 8 . . 2 . . . 3 . Phase Generator 1 | . . . . . . . 1 . . . . . . . . Machines Repaired . | . . . . . . . . . . . . . . . . Machines Sabotaged . | . . . . . . . . . . . . . . . . Overloaded Fab Kills . | . . . . . . . . . . . . . . . . Hacking | -11 -10 -9 -9 -9 -8 -8 -8 -8 -7 -7 -6 -6 -5 -5 -5 --------- Run | Jun Mat Mat Min Exi Min Mat Gar Mat Fac Gar Fac DSF Fac Gar Fac Machines Accessed 41 | . 3 3 . 1 . 3 4 5 8 . 1 . 6 2 5 Terminals 28 | . 3 3 . . . 2 4 4 6 . 1 . 3 2 . Fabricators 3 | . . . . . . . . . 1 . . . 1 . 1 Repair Stations 3 | . . . . . . . . . . . . . 1 . 2 Recycling Units . | . . . . . . . . . . . . . . . . Scanalyzers 2 | . . . . . . . . 1 . . . . . . 1 Garrison Access 4 | . . . . . . 1 . . 1 . . . 1 . 1 Total Hacks 98 | . 11 8 . 4 . 5 4 15 16 . 1 . 17 4 13 Successful 52 | . 6 5 . 4 . 2 3 9 8 . 1 . 5 1 8 Failed 46 | . 5 3 . . . 3 1 6 8 . . . 12 3 5 Catastrophic 13 | . 2 1 . . . . 1 2 3 . . . 2 1 1 Database Lockouts . | . . . . . . . . . . . . . . . . Manual 31 | . 5 4 . 1 . 3 . 5 6 . . . 7 . . Terminals 65 | . 11 8 . . . 4 4 11 13 . 1 . 9 4 . Fabricators 8 | . . . . . . . . . 2 . . . 3 . 3 Repair Stations 10 | . . . . . . . . . . . . . 4 . 6 Recycling Units . | . . . . . . . . . . . . . . . . Scanalyzers 7 | . . . . . . . . 4 . . . . . . 3 Garrison Access 4 | . . . . . . 1 . . 1 . . . 1 . 1 Terminal Hacks 20 | . 3 2 . 4 . . 3 2 4 . 1 . . 1 . Record 6 | . . . . 4 . . . . 2 . . . . . . Prototype ID Bank 2 | . 2 . . . . . . . . . . . . . . Open Door 2 | . . . . . . . 1 . . . . . . 1 . Open DSF 1 | . . . . . . . . . . . 1 . . . . Level Access Points 1 | . . . . . . . . . 1 . . . . . . Emergency Access Points 1 | . . . . . . . . . 1 . . . . . . Terminal Index 2 | . . 1 . . . . . 1 . . . . . . . Unreport Threat 1 | . . . . . . . . 1 . . . . . . . Locate Traps 2 | . 1 1 . . . . . . . . . . . . . Garrison Registry 1 | . . . . . . . 1 . . . . . . . . Patrol Navigation 1 | . . . . . . . 1 . . . . . . . . Fabricator Hacks 3 | . . . . . . . . . 1 . . . . . 2 Network Status 1 | . . . . . . . . . 1 . . . . . . Load Schematic 1 | . . . . . . . . . . . . . . . 1 Build 1 | . . . . . . . . . . . . . . . 1 Repair Station Hacks 6 | . . . . . . . . . . . . . 3 . 3 Scan Component 4 | . . . . . . . . . . . . . 2 . 2 Repair 2 | . . . . . . . . . . . . . 1 . 1 Recycling Unit Hacks . | . . . . . . . . . . . . . . . . Scanalyzer 6 | . . . . . . . . 4 . . . . . . 2 Insert Component 3 | . . . . . . . . 2 . . . . . . 1 Analyze 3 | . . . . . . . . 2 . . . . . . 1 Garrison Access Hacks 4 | . . . . . . 1 . . 1 . . . 1 . 1 Unlock Access 3 | . . . . . . 1 . . 1 . . . 1 . . Seal Access 1 | . . . . . . . . . . . . . . . 1 Unauthorized Hacks 13 | . 3 3 . . . 1 . 3 2 . . . 1 . . Terminals 13 | . 3 3 . . . 1 . 3 2 . . . 1 . . Botnet 13 | . 3 3 . . . 1 . 3 2 . . . 1 . . Fabricators . | . . . . . . . . . . . . . . . . Repair Stations . | . . . . . . . . . . . . . . . . Recycling Units . | . . . . . . . . . . . . . . . . Scanalyzers . | . . . . . . . . . . . . . . . . Garrison Access . | . . . . . . . . . . . . . . . . Data Cores Recovered . | . . . . . . . . . . . . . . . . Used . | . . . . . . . . . . . . . . . . Hacking Detections 30 | . 2 3 . . . 2 2 5 6 . . . 5 1 4 Full Trace Events . | . . . . . . . . . . . . . . . . Feedback Events . | . . . . . . . . . . . . . . . . Feedback Blocked . | . . . . . . . . . . . . . . . . Robot Schematics Acquired . | . . . . . . . . . . . . . . . . Robots Built . | . . . . . . . . . . . . . . . . Authchips . | . . . . . . . . . . . . . . . . Time . | . . . . . . . . . . . . . . . . Total Robot Build Rating . | . . . . . . . . . . . . . . . . Part Schematics Acquired 3 | . . . . . . . . 2 . . . . . . 1 Parts Built 2 | . . . . . . . . . . . . . . . 2 Authchips 1 | . . . . . . . . . . . . . . . 1 Time 47 | . . . . . . . . . . . . . . . 47 Total Part Build Rating 10 | . . . . . . . . . . . . . . . 10 Parts Repaired 2 | . . . . . . . . . . . . . 1 . 1 Time 38 | . . . . . . . . . . . . . 22 . 16 Parts Recycled . | . . . . . . . . . . . . . . . . Recycled Matter . | . . . . . . . . . . . . . . . . Retrieved Matter . | . . . . . . . . . . . . . . . . Retrieved Components . | . . . . . . . . . . . . . . . . Parts Scanalyzed 3 | . . . . . . . . 2 . . . . . . 1 Part Schematics Acquired 3 | . . . . . . . . 2 . . . . . . 1 Parts Damaged 1 | . . . . . . . . . . . . . . . 1 Bothacking | -11 -10 -9 -9 -9 -8 -8 -8 -8 -7 -7 -6 -6 -5 -5 -5 ------------ Run | Jun Mat Mat Min Exi Min Mat Gar Mat Fac Gar Fac DSF Fac Gar Fac Used RIF Installer 5 | . . . . . . . 2 . . 2 . . . 1 . Command Fork 1 | . . . . . . . . . . 1 . . . . . Watcher Feeds 1 | . . . . . . . . . . 1 . . . . . Alert ID Control 1 | . . . . . . . 1 . . . . . . . . Autooverride 1 | . . . . . . . . . . . . . . 1 . Robots Hacked 16 | . . . . . . . . 1 1 . 1 3 1 6 3 Non-combat 4 | . . . . . . . . 1 1 . 1 . . . 1 Combat 12 | . . . . . . . . . . . . 3 1 6 2 Robot Hacks Applied 16 | . . . . . . . . 1 1 . 1 3 1 6 3 parse_system 1 | . . . . . . . . . 1 . . . . . . map_walls 1 | . . . . . . . . 1 . . . . . . . find_recycling 1 | . . . . . . . . . . . . . . . 1 release_backups 1 | . . . . . . . . . . . 1 . . . . reboot_system 8 | . . . . . . . . . . . . . . 6 2 overwrite_iff 1 | . . . . . . . . . . . . . 1 . . formatsys_high 3 | . . . . . . . . . . . . 3 . . . Relay Couplers Released 53 | . . . . . . . 31 . 2 7 . . . 11 2 Machine Destruction 53 | . . . . . . . 31 . 2 7 . . . 11 2 Attached 9 | . . . . . . . . 1 2 1 2 . . 2 1 Fabnet Peak Effective % . | . . . . . . . . . . . . . . . . Robots Rewired 6 | . . . . . . . 3 . . . . . . 3 . Allies Hacked . | . . . . . . . . . . . . . . . . Hacks Repelled . | . . . . . . . . . . . . . . . . Allies | -11 -10 -9 -9 -9 -8 -8 -8 -8 -7 -7 -6 -6 -5 -5 -5 -------- Run | Jun Mat Mat Min Exi Min Mat Gar Mat Fac Gar Fac DSF Fac Gar Fac Total Allies 15 | . . . 3 . . . 3 . . . . 5 1 3 . Largest Group 4 | . . . 3 3 3 2 3 1 . . . 4 3 3 3 Highest-Rated Group 130 | . . . 40 40 40 32 89 25 . . . 128 102 130 130 Highest-Rated Ally 90 | . . . 16 16 16 16 39 25 . . . 90 47 46 46 Total Orders 8 | . . . . . . 2 . . . . . . . 6 . STAY 3 | . . . . . . . . . . . . . . 3 . FOLLOW 3 | . . . . . . . . . . . . . . 3 . EXPLORE 1 | . . . . . . 1 . . . . . . . . . RETURN 1 | . . . . . . 1 . . . . . . . . . Ally Attacks 77 | . . . . . 16 7 15 2 . . . 15 15 . 7 Total Damage 1684 | . . . . . 153 79 325 74 . . . 618 227 . 208 Kills 16 | . . . . . 4 . 6 . . . . 2 2 . 2 Allies Corrupted . | . . . . . . . . . . . . . . . . Allies Melted 1 | . . . . . . . . . . . . . 1 . . Intel | -11 -10 -9 -9 -9 -8 -8 -8 -8 -7 -7 -6 -6 -5 -5 -5 ------- Run | Jun Mat Mat Min Exi Min Mat Gar Mat Fac Gar Fac DSF Fac Gar Fac Robot Analysis Total . | . . . . . . . . . . . . . . . . Derelict Logs Recovered . | . . . . . . . . . . . . . . . . Drone Launches 1 | . . . . . . 1 . . . . . . . . . Drone Recoveries 1 | . . . . . . 1 . . . . . . . . . Exploration | -11 -10 -9 -9 -9 -8 -8 -8 -8 -7 -7 -6 -6 -5 -5 -5 ------------- Run | Jun Mat Mat Min Exi Min Mat Gar Mat Fac Gar Fac DSF Fac Gar Fac Turns Passed 13719 | 76 431 295 150 354 234 998 2187 895 1391 1382 70 171 655 3039 1391 Spaces Moved 6974 | 47 275 178 122 292 137 307 1096 461 924 614 56 104 310 1426 625 Core 21 | 21 . . . . . . . . . . . . . . . Treads 1261 | . . . . . . . . . 7 532 . . . 301 421 Legs 4008 | 26 275 178 122 292 137 307 1096 461 910 . . . . . 204 Wheels 1684 | . . . . . . . . . 7 82 56 104 310 1125 . Hover . | . . . . . . . . . . . . . . . . Flight . | . . . . . . . . . . . . . . . . Fastest Speed 50 | 50 120 120 120 120 120 120 122 120 115 100 115 115 100 115 120 Average Speed 131 | 123 120 120 120 120 120 128 141 120 121 154 115 115 111 127 154 Slowest Speed 320 | 150 120 120 120 120 120 192 192 122 320 160 115 115 115 160 190 Overloaded Moves . | . . . . . . . . . . . . . . . . Propulsion Burnouts . | . . . . . . . . . . . . . . . . Robots Hopped . | . . . . . . . . . . . . . . . . Cave-ins Triggered . | . . . . . . . . . . . . . . . . Exploration Rate (%) 38 | 4 41 27 30 70 42 34 92 39 21 47 2 89 6 63 14 Regions Visited 15 Branch Regions 3 Pre-discovered Areas 1 | . . . . 1 . . . . . . . . . . . Known Exits Taken 4 | . . . . . . 1 . . 1 . 1 . 1 . . Unknown Exits Taken 7 | 1 1 1 1 1 1 . . 1 . . . . . . . Scrap Searched 1 | . . . . . 1 . . . . . . . . . . Spaces Dug 57 | . . . . . . 2 7 7 . 9 . . 4 24 4 Terrain Destroyed 188 | . . . . . 10 2 92 19 7 26 . . 4 24 4 Melee 56 | . . . . . . 2 6 7 . 9 . . 4 24 4 Projectile 4 | . . . . . . . 1 . 1 2 . . . . . AOE 128 | . . . . . 10 . 85 12 6 15 . . . . . Terrain Rammed . | . . . . . . . . . . . . . . . . Walls Destroyed . | . . . . . . . . . . . . . . . . Machines Disabled . | . . . . . . . . . . . . . . . . Actions | -11 -10 -9 -9 -9 -8 -8 -8 -8 -7 -7 -6 -6 -5 -5 -5 --------- Run | Jun Mat Mat Min Exi Min Mat Gar Mat Fac Gar Fac DSF Fac Gar Fac Total 10443 | 66 354 229 125 296 202 774 1464 721 1141 864 60 155 555 2506 931 Wait 2132 | . 43 26 4 2 62 338 91 174 110 110 . 10 193 788 181 Move 6962 | 46 274 177 121 291 136 307 1095 460 924 613 55 103 310 1425 625 Hop . | . . . . . . . . . . . . . . . . Pick Up 186 | 13 10 4 . 1 . 26 22 6 24 8 1 12 7 36 16 Fast Attach 17 | . 3 . . . . . . 1 3 . . . 3 6 1 Attach 73 | 6 . 2 . . . 10 10 2 12 5 2 1 2 8 13 Detach 2 | . . . . . . 1 . . . . . . . . 1 Swap 137 | . 2 1 . 1 2 12 27 19 18 24 1 1 3 15 11 Drop 121 | 1 10 3 . 1 . 11 15 9 16 4 . 6 6 30 9 Fire 313 | . 12 16 . . 2 67 102 29 24 42 1 6 1 8 3 Melee 309 | . . . . . . 2 41 21 10 58 . . 30 76 71 Ram . | . . . . . . . . . . . . . . . . Kick . | . . . . . . . . . . . . . . . . Crush . | . . . . . . . . . . . . . . . . Escape Stasis 92 | . . . . . . . 5 . . . . 16 . 71 . Rewire 83 | . . . . . . . 56 . . . . . . 27 . Trap 16 | . . . . . . . . . . . . . . 16 . Miscellaneous . | . . . . . . . . . . . . . . . . Route ------- -11/Junkyard -10/Materials -9/Materials -9/Mines -9/Exiles -8/Mines -8/Materials -8/Garrison (discovered 3 exits: *Mat x3) -8/Materials -7/Factory (discovered 5 exits: Fac x4 / Gar) -7/Garrison -6/Factory -6/DSF -5/Factory -5/Garrison (discovered 2 exits: *Fac x2) -5/Factory (discovered 1 exit: *Fac) History --------- Turn | Location | Event 20 | -11/Junkyard | Discovered new exit (range 15) 77 | -11/Junkyard | Entered Materials 300 | -10/Materials | Build established: Mutant 448 | -10/Materials | Discovered new exit (range 16) 508 | -10/Materials | Entered another Materials area 508 | -9/Materials | Evolved 2 slots: Propulsion x2 773 | -9/Materials | Discovered new exit (range 13) 803 | -9/Materials | Entered Mines 814 | -9/Mines | Assisted by bots powering up and referring to "LRC-V3" 948 | -9/Mines | Deemed a non-threat by the Exiles lab entrance 948 | -9/Mines | Discovered new exit (range 5) 953 | -9/Mines | Entered Exiles 953 | -9/Exiles | Accompanied by 3 allies 982 | -9/Exiles | Met 8R-AWN 1004 | -9/Exiles | Met EX-HEX 1065 | -9/Exiles | Met EX-DEC 1088 | -9/Exiles | Learned location of Zion (-6) 1112 | -9/Exiles | Met EX-BIN 1136 | -9/Exiles | Aligned with FarCom system 1137 | -9/Exiles | Given EX-Vault access code 1165 | -9/Exiles | Opened EX-Vault 1170 | -9/Exiles | Found Prototype Device 1207 | -9/Exiles | Warned to stay clear of 0b10 Research branches 1292 | -9/Exiles | Discovered new exit (range 11) 1307 | -9/Exiles | Left Exiles lab with Supersonic Drone Bay 1307 | -9/Exiles | Entered Mines 1307 | -8/Mines | Accompanied by 3 allies 1533 | -8/Mines | Discovered new exit (range 7) 1541 | -8/Mines | Entered Materials 1541 | -8/Materials | Accompanied by 2 allies 1541 | -8/Materials | Evolved 2 slots: Utility x2 1541 | -8/Materials | Identified Supersonic Drone Bay 2081 | -8/Materials | Build established: Scavenger-Mutant 2237 | -8/Materials | Garrison activated, responded to threat 2436 | -8/Materials | Lost 4 parts (2n2w) 2539 | -8/Materials | Identified exit to Garrison 2539 | -8/Materials | Entered Garrison 2689 | -8/Garrison | Build established: Mutant 2803 | -8/Garrison | Destroyed 8 combat bots 2866 | -8/Garrison | Triggered checkpoint 2907 | -8/Garrison | Core integrity fell below 50% 2932 | -8/Garrison | Lost 4 parts (1p1n2w) 2994 | -8/Garrison | Garrison Relay disabled 3062 | -8/Garrison | Triggered checkpoint 3130 | -8/Garrison | Discovered new exit (range 15) 3223 | -8/Garrison | Build established: Scavenger-Mutant 3290 | -8/Garrison | Triggered checkpoint 3366 | -8/Garrison | Garrison Relay disabled 3624 | -8/Garrison | Triggered checkpoint 3705 | -8/Garrison | Discovered new exit (range 10) 3776 | -8/Garrison | Discovered new exit (range 58) 3776 | -8/Garrison | Discovered new exit (range 10) 3776 | -8/Garrison | Discovered new exit (range 41) 3802 | -8/Garrison | Phase Generator disabled 3866 | -8/Garrison | Triggered checkpoint 3876 | -8/Garrison | Garrison Relay disabled 4089 | -8/Garrison | Installed Relay Interface Framework 4412 | -8/Garrison | Garrison Relay disabled 4415 | -8/Garrison | Garrison Relay disabled 4418 | -8/Garrison | Garrison Relay disabled 4441 | -8/Garrison | Garrison Relay disabled 4520 | -8/Garrison | Triggered checkpoint 4608 | -8/Garrison | Triggered checkpoint 4636 | -8/Garrison | Garrison Relay disabled 4655 | -8/Garrison | Expanded RIF knowledge: Alert ID Control 4726 | -8/Garrison | Entered Materials 4726 | -8/Materials | Accompanied by 1 ally 5000 | -8/Materials | Core integrity fell below 20% 5126 | -8/Materials | First assault squad dispatched 5593 | -8/Materials | Discovered new exit (range 13) 5621 | -8/Materials | Entered Factory 5621 | -7/Factory | Evolved 2 slots: Utility x2 6035 | -7/Factory | Core integrity fell below 50% 6481 | -7/Factory | Identified exit to Factory 7012 | -7/Factory | Identified exit to Garrison 7012 | -7/Factory | Entered Garrison 7202 | -7/Garrison | Triggered checkpoint 7277 | -7/Garrison | Build established: Mutant 7349 | -7/Garrison | Expanded RIF knowledge: Watcher Feeds 7380 | -7/Garrison | Garrison Relay disabled 7534 | -7/Garrison | Triggered checkpoint 7679 | -7/Garrison | Expanded RIF knowledge: Command Fork 7693 | -7/Garrison | Discovered exit to Factory (range 14) 7986 | -7/Garrison | Triggered checkpoint 8071 | -7/Garrison | Garrison Relay disabled 8213 | -7/Garrison | Triggered checkpoint 8247 | -7/Garrison | Core integrity fell below 20% 8300 | -7/Garrison | Lost 7 parts (2p4n1w) 8354 | -7/Garrison | Build established: Bothacker-Mutant 8394 | -7/Garrison | Entered Factory 8394 | -6/Factory | Evolved 2 slots: Utility x2 8464 | -6/Factory | Identified exit to DSF 8464 | -6/Factory | Entered DSF 8501 | -6/DSF | Additional patrols routed to DSF 8550 | -6/DSF | Discovered new exit (range 15) 8635 | -6/DSF | Entered Factory 8635 | -5/Factory | Accompanied by 3 allies 8635 | -5/Factory | Evolved 2 slots: Propulsion x2 8807 | -5/Factory | Build established: Assassin 9077 | -5/Factory | Repaired Arm. Huge Wheel 9210 | -5/Factory | Build established: Hacker-Mutant 9290 | -5/Factory | Identified exit to Garrison 9290 | -5/Factory | Entered Garrison 9468 | -5/Garrison | Triggered checkpoint 9525 | -5/Garrison | Garrison Relay disabled 9878 | -5/Garrison | Build established: Bothacker-Mutant 9954 | -5/Garrison | Triggered checkpoint 10260 | -5/Garrison | Triggered checkpoint 10320 | -5/Garrison | Garrison Relay disabled 11043 | -5/Garrison | Discovered new exit (range 14) 11134 | -5/Garrison | Lost 5 parts (4n1w) 11440 | -5/Garrison | Triggered checkpoint 11783 | -5/Garrison | Core integrity fell below 50% 11949 | -5/Garrison | Garrison Relay disabled 12039 | -5/Garrison | Expanded RIF knowledge: Autooverride 12082 | -5/Garrison | Triggered checkpoint 12085 | -5/Garrison | Discovered new exit (range 15) 12329 | -5/Garrison | Entered Factory 12329 | -5/Factory | Accompanied by 3 allies 12929 | -5/Factory | First assault squad dispatched 13062 | -5/Factory | Lost 3 parts (1p2n) 13151 | -5/Factory | Fabricated Power Sword (x2) 13494 | -5/Factory | Discovered new exit (range 20) 13501 | -5/Factory | Identified exit to Factory 13568 | -5/Factory | Repaired Imp. Treads 13583 | -5/Factory | Cargo convoy interrupted 13700 | -5/Factory | System corruption reached 10% 13708 | -5/Factory | Core integrity fell below 20% 13720 | -5/Factory | Destroyed by P-70 Sage with High-powered Shock Rifle Last Messages --------------- 13684_ System Shield destroyed. 13688_ Neutrino Core destroyed. 13691_ Carbon-fiber Leg destroyed. 13694_ System corrupted: Energy discharge (-50). 13694_ Relay Coupler [Sentry] destroyed. 13694_ Relay Coupler [NC] destroyed. 13694_ >> Watcher Feeds: All visual feed links lost. 13694_ System corrupted by crushing effect (+5). 13694_ System corrupted by crushing effect (+1). 13695_ Carbon-fiber Leg destroyed. 13699_ W-25 Informer sends out distress signal. 13699_ Mic. Antimatter Reactor destroyed. 13699_ System corrupted by crushing effect (+5). 13702_ Adv. Melee Analysis Suite destroyed. 13702_ System corrupted by crushing effect (+1). 13708_ Imp. Treads destroyed. 13709_ B-60 Warrior destroyed. 13712_ Power Sword follow-up attack on L-41 Fighter. 13712_ L-41 Fighter destroyed. 13719_ Imp. Medium Armor Plating destroyed. Map ----- +----------------------------------------------------+ | ?????????????????????????????????????????????? | | #?????????????????????????????????????????????? | | #?????????????????????????????????????????????? | | #?????????????????????????????????????????????? | | #?????????????????????????????????????????????? | | #?????????????????????????????????????????????? | | #?????????????????????????????????????????????? | | #?????????????????????????????????????????????? | | ##????????????????????????????????????????????? | | #????????????????????????????????????????????? | | #????????????????????????????????????????????? | | < #????????????????????????????????????????????? | | #????????????????????????????????????????????? | | ! #????????????????????????????????????????????? | | #%###????????????????????????????????????????????? | | #??????????????????????????????????????????????? | | #??????????????????????????????????????????????? | | #??????#???????????????????????????????????????? | | #???? ???????????????????????????????????????? | | ### #??????????????????????????????????????? | | #??????????????????????????????????????? | | ### =#??????????????????????????????????????? | | %#???? #??????????????????????????????????????? | | [!#??????##??????????###?????????????????????????? | | #+######?????#########;####??????????????????????? | | #%= #?????# !@#??????????????????????? | | # "" #?????# !%#??????????????????????? | | #[ """#?????# """" % #??????????????????????? | | # R"#?????# """" !![ #??????????????????????? | | #! """#?????# """" !! #??????????????????????? | | # #?????# """" ![ #??????????????????????? | | ######+#?????# """" p #??????????????????????? | | ?????# ####### """" p #??????????????????????? | | #????# + #??????????????????????? | | #????######### #??????????????????????? | | #????????????# #??????????????????????? | | #????????????# #??????????????????????? | | #????????????#######+#######################?????? | | #############???# #?????? | | """T""" #???# #?????? | | #???# #?????? | | "" """ """ ##### #?????? | | "" """ """ %% w #?????? | | "" """ """ #+####+##############+### #?????? | | # %%% [ ## # #?????? | | ! # "" % ## # #?????? | | # """ ## """ # #?????? | | + "F ## """ # #?????? | | # """ ## """ %"" # #?????? | | ########+## "" """" ## ! " # #????"? | +----------------------------------------------------+ Best States ------------- Heat Dissipation 40 Energy Generation 21 Energy Capacity 315 Matter Stores 450 Matter Capacity 450 Sight Range 16 Robot Scan Range 15 Terrain Scan Density 10 Armor Coverage 225 Resistance: KI 30 Evasion (%) 55 Targeting Accuracy 16 Melee Accuracy 8 Recoil Reduction 6 Defensive Hacking 20 Relay Coupler Types 4 Relay Coupler Value 84 Authchip Count 2 Item Schematics ----------------- Katana | -8/Materials | Scanalyzed System Shield | -8/Materials | Scanalyzed Power Sword | -5/Factory | Scanalyzed Robot Schematics ------------------ None Fabricated ------------ Power Sword | x2 | -5/Factory | Authchip Alien Tech Used ----------------- None Achievements -------------- Assassin Challenges ------------ None Game ------ Seed ShockSeismicShielding Manual? 0 Play Time 03:23:02 Cumulative 63.2 hours Start 2023.03.18 @ 12:23:35 End 2023.03.19 @ 10:04:04 Sessions 3 Manual Loads 0 Difficulty Rogue Special Mode None Game No. 39 Rogue 39 Adventurer 0 Explorer 0 Win Type - Total 0 Types 0/0/0/0/0/0/0/0/0 Lore% 29 Gallery% 37 Achievement% 30 Wizard Run 0 Options --------- ASCII 0 Keyboard 0 Movement Numpad Keybinds 0 Fullscreen 1 Font 24/Terminus Map View 76x50 Tactical HUD 1 Map Filters NONE Filters NONE Steam 1 RUN: 0d39d64f-3240-4e47-bffc-6ba07691518b